[Event "January 2 Late 2024"]
[Site "https://www.chess.com"]
[Date "2024.01.02"]
[Round "1"]
[White "Manukian, Artak"]
[Black "Vila Dupla, Aurelio"]
[Result "1-0"]
[Board "207"]
[TimeControl "180+1"]
[WhiteFideId "13301373"]
[BlackFideId "2203383"]
[WhiteElo "2565"]
[BlackElo "2184"]
[WhiteTeam "ARM"]
[BlackTeam "ESP"]
[WhiteClock "0:00:08"]
[BlackClock "0:00:00"]

1. e4 {[%clk 0:03:00]}  c5 {[%clk 0:02:59]} 2. Nf3 {[%clk 0:02:59]}  d6 {[%clk 0:02:59]} 3. Bb5+ {[%clk 0:02:58]}  Nd7 {[%clk 0:02:58]} 4. O-O {[%clk 0:02:57]}  a6 {[%clk 0:02:58]} 5. Bd3 {[%clk 0:02:57]}  Ngf6 {[%clk 0:02:57]} 6. a4 {[%clk 0:02:56]}  b6 {[%clk 0:02:53]} 7. c3 {[%clk 0:02:56]}  Bb7 {[%clk 0:02:51]} 8. Re1 {[%clk 0:02:56]}  e6 {[%clk 0:02:49]} 9. Bc2 {[%clk 0:02:56]}  Be7 {[%clk 0:02:49]} 10. d4 {[%clk 0:02:57]}  Rc8 {[%clk 0:02:19]} 11. e5 {[%clk 0:02:55]}  Nd5 {[%clk 0:01:58]} 12. Na3 {[%clk 0:02:37]}  cxd4 {[%clk 0:01:58]} 13. cxd4 {[%clk 0:02:36]}  dxe5 {[%clk 0:01:58]} 14. dxe5 {[%clk 0:02:35]}  Nb4 {[%clk 0:01:55]} 15. Bb1 {[%clk 0:02:28]}  O-O {[%clk 0:01:55]} 16. h4 {[%clk 0:02:17]}  Nc5 {[%clk 0:01:55]} 17. Bg5 {[%clk 0:02:07]}  Bxg5 {[%clk 0:01:43]} 18. Nxg5 {[%clk 0:02:05]}  h6 {[%clk 0:01:43]} 19. Nh3 {[%clk 0:01:36]}  Qxh4 {[%clk 0:01:32]} 20. Qe2 {[%clk 0:01:14]}  Rfd8 {[%clk 0:01:23]} 21. Nc4 {[%clk 0:01:06]}  Ncd3 {[%clk 0:00:53]} 22. Bxd3 {[%clk 0:01:02]}  Rxd3 {[%clk 0:00:49]} 23. Ne3 {[%clk 0:00:29]}  Rcd8 {[%clk 0:00:42]} 24. Rad1 {[%clk 0:00:26]}  Qe4 {[%clk 0:00:20]} 25. Rxd3 {[%clk 0:00:22]}  Rxd3 {[%clk 0:00:19]} 26. Qg4 {[%clk 0:00:16]}  Qxg4 {[%clk 0:00:16]} 27. Nxg4 {[%clk 0:00:16]}  Rd2 {[%clk 0:00:16]} 28. b3 {[%clk 0:00:15]}  Rb2 {[%clk 0:00:15]} 29. Re3 {[%clk 0:00:14]}  Nc2 {[%clk 0:00:15]} 30. Rc3 {[%clk 0:00:14]}  Rb1+ {[%clk 0:00:15]} 31. Kh2 {[%clk 0:00:14]}  Nd4 {[%clk 0:00:06]} 32. Nf4 {[%clk 0:00:12]}  Be4 {[%clk 0:00:05]} 33. Rc8+ {[%clk 0:00:10]}  Kh7 {[%clk 0:00:04]} 34. Rc7 {[%clk 0:00:10]}  Rxb3 {[%clk 0:00:05]} 35. Rxf7 {[%clk 0:00:10]}  Kg8 {[%clk 0:00:05]} 36. Rd7 {[%clk 0:00:09]}  Nc2 {[%clk 0:00:05]} 37. Nxe6 {[%clk 0:00:08]}  Ne1 {[%clk 0:00:04]} 38. Rxg7+ {[%clk 0:00:08]}  Kh8 {[%clk 0:00:00]} 39. Nxh6 {[%clk 0:00:08]} 1-0

[Event "January 2 Late 2024"]
[Site "https://www.chess.com"]
[Date "2024.01.02"]
[Round "1"]
[White "Lymar, Vladislav"]
[Black "yujiarun18"]
[Result "1-0"]
[Board "209"]
[TimeControl "180+1"]
[WhiteFideId "14162180"]
[WhiteElo "2562"]
[BlackElo "2175"]
[WhiteTeam "UKR"]
[WhiteClock "0:01:05"]
[BlackClock "0:00:17"]

1. d4 {[%clk 0:03:00]}  d5 {[%clk 0:02:59]} 2. Nc3 {[%clk 0:02:57]}  Nf6 {[%clk 0:02:58]} 3. g3 {[%clk 0:02:57]}  c6 {[%clk 0:02:57]} 4. Bg2 {[%clk 0:02:57]}  Bf5 {[%clk 0:02:52]} 5. Bg5 {[%clk 0:02:51]}  h6 {[%clk 0:02:49]} 6. Bxf6 {[%clk 0:02:50]}  exf6 {[%clk 0:02:49]} 7. Qd2 {[%clk 0:02:48]}  Bd6 {[%clk 0:02:47]} 8. O-O-O {[%clk 0:02:47]}  O-O {[%clk 0:02:46]} 9. e4 {[%clk 0:02:47]}  dxe4 {[%clk 0:02:43]} 10. Nxe4 {[%clk 0:02:47]}  Na6 {[%clk 0:02:34]} 11. Ne2 {[%clk 0:02:43]}  Nb4 {[%clk 0:02:26]} 12. Kb1 {[%clk 0:02:38]}  Re8 {[%clk 0:02:18]} 13. N2c3 {[%clk 0:02:34]}  a5 {[%clk 0:02:09]} 14. Rhe1 {[%clk 0:02:32]}  b5 {[%clk 0:02:02]} 15. a3 {[%clk 0:02:29]}  Na6 {[%clk 0:02:00]} 16. Nxd6 {[%clk 0:02:29]}  Qxd6 {[%clk 0:01:59]} 17. Ne4 {[%clk 0:01:46]}  Qc7 {[%clk 0:01:25]} 18. Qd3 {[%clk 0:01:30]}  b4 {[%clk 0:01:21]} 19. Nxf6+ {[%clk 0:01:24]}  gxf6 {[%clk 0:01:16]} 20. Qxf5 {[%clk 0:01:25]}  Qd6 {[%clk 0:01:10]} 21. Be4 {[%clk 0:01:19]}  Nc7 {[%clk 0:00:22]} 22. Qh7+ {[%clk 0:01:15]}  Kf8 {[%clk 0:00:23]} 23. Qxh6+ {[%clk 0:01:11]}  Ke7 {[%clk 0:00:23]} 24. Bxc6+ {[%clk 0:01:11]}  Ne6 {[%clk 0:00:23]} 25. Bxe8 {[%clk 0:01:08]}  Rxe8 {[%clk 0:00:23]} 26. d5 {[%clk 0:01:08]}  bxa3 {[%clk 0:00:21]} 27. dxe6 {[%clk 0:01:05]}  fxe6 {[%clk 0:00:17]} 28. Rxd6 {[%clk 0:01:05]} 1-0

[Event "January 2 Late 2024"]
[Site "https://www.chess.com"]
[Date "2024.01.02"]
[Round "1"]
[White "Grinev, Valeriy"]
[Black "Porat, Tori"]
[Result "1-0"]
[Board "211"]
[TimeControl "180+1"]
[WhiteFideId "14117517"]
[BlackFideId "30982626"]
[WhiteElo "2561"]
[BlackElo "2164"]
[WhiteTeam "UKR"]
[BlackTeam "USA"]
[WhiteClock "0:00:31"]
[BlackClock "0:00:14"]

1. d4 {[%clk 0:03:00]}  d5 {[%clk 0:02:59]} 2. c4 {[%clk 0:03:01]}  c6 {[%clk 0:02:59]} 3. cxd5 {[%clk 0:03:01]}  cxd5 {[%clk 0:02:59]} 4. Bf4 {[%clk 0:03:01]}  Nf6 {[%clk 0:02:58]} 5. e3 {[%clk 0:03:01]}  Nc6 {[%clk 0:02:57]} 6. Nc3 {[%clk 0:03:02]}  e6 {[%clk 0:02:56]} 7. Bd3 {[%clk 0:03:01]}  Bb4 {[%clk 0:02:54]} 8. Ne2 {[%clk 0:02:54]}  O-O {[%clk 0:02:54]} 9. O-O {[%clk 0:02:52]}  a6 {[%clk 0:02:53]} 10. a3 {[%clk 0:02:50]}  Bd6 {[%clk 0:02:53]} 11. Bxd6 {[%clk 0:02:48]}  Qxd6 {[%clk 0:02:53]} 12. f4 {[%clk 0:02:49]}  b5 {[%clk 0:02:44]} 13. Kh1 {[%clk 0:02:45]}  Qe7 {[%clk 0:02:37]} 14. Ng1 {[%clk 0:02:45]}  b4 {[%clk 0:02:31]} 15. Na4 {[%clk 0:02:44]}  bxa3 {[%clk 0:02:29]} 16. bxa3 {[%clk 0:02:45]}  Rb8 {[%clk 0:02:25]} 17. Nc5 {[%clk 0:02:43]}  a5 {[%clk 0:02:21]} 18. Nf3 {[%clk 0:02:42]}  Ng4 {[%clk 0:02:13]} 19. Qe2 {[%clk 0:02:39]}  f5 {[%clk 0:02:10]} 20. Rab1 {[%clk 0:02:31]}  Bd7 {[%clk 0:02:00]} 21. Rfc1 {[%clk 0:02:16]}  Na7 {[%clk 0:01:38]} 22. h3 {[%clk 0:02:11]}  Nf6 {[%clk 0:01:36]} 23. Ne5 {[%clk 0:02:12]}  Rxb1 {[%clk 0:01:21]} 24. Rxb1 {[%clk 0:02:11]}  Bc8 {[%clk 0:01:15]} 25. Rb6 {[%clk 0:02:00]}  Ne4 {[%clk 0:01:13]} 26. Bxe4 {[%clk 0:02:00]}  fxe4 {[%clk 0:01:13]} 27. Qe1 {[%clk 0:01:45]}  Qc7 {[%clk 0:01:04]} 28. Qxa5 {[%clk 0:01:41]}  g5 {[%clk 0:01:01]} 29. fxg5 {[%clk 0:01:29]}  Nc6 {[%clk 0:00:47]} 30. Qb5 {[%clk 0:01:01]}  Nxe5 {[%clk 0:00:46]} 31. dxe5 {[%clk 0:01:01]}  Qxe5 {[%clk 0:00:46]} 32. Rb8 {[%clk 0:00:48]}  Qxg5 {[%clk 0:00:33]} 33. Qe2 {[%clk 0:00:43]}  Qe5 {[%clk 0:00:30]} 34. Qg4+ {[%clk 0:00:41]}  Kh8 {[%clk 0:00:29]} 35. Rb1 {[%clk 0:00:41]}  Rg8 {[%clk 0:00:25]} 36. Qh4 {[%clk 0:00:40]}  Qg7 {[%clk 0:00:24]} 37. Rg1 {[%clk 0:00:38]}  e5 {[%clk 0:00:24]} 38. a4 {[%clk 0:00:35]}  Bf5 {[%clk 0:00:24]} 39. a5 {[%clk 0:00:35]}  d4 {[%clk 0:00:23]} 40. a6 {[%clk 0:00:33]}  dxe3 {[%clk 0:00:23]} 41. a7 {[%clk 0:00:33]}  Qxa7 {[%clk 0:00:20]} 42. Qf6+ {[%clk 0:00:33]}  Qg7 {[%clk 0:00:19]} 43. Qxf5 {[%clk 0:00:32]}  e2 {[%clk 0:00:19]} 44. Qxe4 {[%clk 0:00:32]}  Qe7 {[%clk 0:00:15]} 45. Nd3 {[%clk 0:00:31]}  Rg3 {[%clk 0:00:15]} 46. Qxe2 {[%clk 0:00:30]}  Rg5 {[%clk 0:00:14]} 47. Re1 {[%clk 0:00:29]}  Qg7 {[%clk 0:00:11]} 48. Nxe5 {[%clk 0:00:29]}  h5 {[%clk 0:00:10]} 49. Nf3 {[%clk 0:00:27]}  Rg3 {[%clk 0:00:10]} 50. Qe8+ {[%clk 0:00:25]}  Kh7 {[%clk 0:00:10]} 51. Qxh5+ {[%clk 0:00:26]}  Qh6 {[%clk 0:00:09]} 52. Re7+ {[%clk 0:00:24]}  Rg7 {[%clk 0:00:09]} 53. Rxg7+ {[%clk 0:00:24]}  Kxg7 {[%clk 0:00:09]} 54. Qxh6+ {[%clk 0:00:25]}  Kxh6 {[%clk 0:00:09]} 55. Kh2 {[%clk 0:00:25]}  Kh5 {[%clk 0:00:09]} 56. Kg3 {[%clk 0:00:26]}  Kg6 {[%clk 0:00:09]} 57. Kg4 {[%clk 0:00:27]}  Kh6 {[%clk 0:00:10]} 58. h4 {[%clk 0:00:27]}  Kg6 {[%clk 0:00:10]} 59. h5+ {[%clk 0:00:27]}  Kh6 {[%clk 0:00:11]} 60. Kh4 {[%clk 0:00:28]}  Kh7 {[%clk 0:00:11]} 61. Kg5 {[%clk 0:00:28]}  Kg7 {[%clk 0:00:12]} 62. h6+ {[%clk 0:00:29]}  Kh7 {[%clk 0:00:12]} 63. Ne5 {[%clk 0:00:29]}  Kg8 {[%clk 0:00:12]} 64. Kg6 {[%clk 0:00:29]}  Kh8 {[%clk 0:00:13]} 65. g3 {[%clk 0:00:30]}  Kg8 {[%clk 0:00:13]} 66. h7+ {[%clk 0:00:30]}  Kh8 {[%clk 0:00:14]} 67. Nf7# {[%clk 0:00:31]} 1-0

[Event "January 2 Late 2024"]
[Site "https://www.chess.com"]
[Date "2024.01.02"]
[Round "1"]
[White "Kovacevic, Radmila"]
[Black "Taboas Rodriguez, Daniel"]
[Result "0-1"]
[Board "212"]
[TimeControl "180+1"]
[WhiteFideId "933171"]
[BlackFideId "2208466"]
[WhiteElo "2155"]
[BlackElo "2556"]
[WhiteTeam "SRB"]
[BlackTeam "ESP"]
[WhiteClock "0:00:17"]
[BlackClock "0:00:06"]

1. e4 {[%clk 0:02:59]}  e5 {[%clk 0:02:59]} 2. d4 {[%clk 0:02:59]}  exd4 {[%clk 0:02:59]} 3. Qxd4 {[%clk 0:03:00]}  Nc6 {[%clk 0:03:00]} 4. Qe3 {[%clk 0:03:00]}  Nf6 {[%clk 0:03:00]} 5. Bd2 {[%clk 0:03:01]}  Bb4 {[%clk 0:02:58]} 6. c3 {[%clk 0:03:01]}  Ba5 {[%clk 0:02:57]} 7. c4 {[%clk 0:03:01]}  Bxd2+ {[%clk 0:02:51]} 8. Nxd2 {[%clk 0:03:02]}  O-O {[%clk 0:02:51]} 9. O-O-O {[%clk 0:03:00]}  Re8 {[%clk 0:02:46]} 10. Qf4 {[%clk 0:02:52]}  d6 {[%clk 0:02:45]} 11. h3 {[%clk 0:02:50]}  Qe7 {[%clk 0:02:44]} 12. Bd3 {[%clk 0:02:44]}  Qe5 {[%clk 0:02:39]} 13. Qe3 {[%clk 0:02:32]}  Qc5 {[%clk 0:02:28]} 14. Qxc5 {[%clk 0:02:17]}  dxc5 {[%clk 0:02:29]} 15. f4 {[%clk 0:02:17]}  Nd4 {[%clk 0:02:09]} 16. Ngf3 {[%clk 0:02:13]}  Nh5 {[%clk 0:02:02]} 17. Nxd4 {[%clk 0:02:06]}  cxd4 {[%clk 0:02:03]} 18. Rhf1 {[%clk 0:02:05]}  c5 {[%clk 0:02:03]} 19. g4 {[%clk 0:02:04]}  Nf6 {[%clk 0:02:02]} 20. e5 {[%clk 0:02:00]}  Nd7 {[%clk 0:02:02]} 21. Ne4 {[%clk 0:01:59]}  f6 {[%clk 0:01:48]} 22. Nd6 {[%clk 0:01:58]}  Re7 {[%clk 0:01:48]} 23. Be4 {[%clk 0:01:47]}  Nb6 {[%clk 0:01:35]} 24. exf6 {[%clk 0:01:35]}  gxf6 {[%clk 0:01:35]} 25. Rde1 {[%clk 0:01:35]}  Kf8 {[%clk 0:01:30]} 26. Nf5 {[%clk 0:01:31]}  Rc7 {[%clk 0:01:26]} 27. b3 {[%clk 0:01:29]}  Bxf5 {[%clk 0:01:19]} 28. Bxf5 {[%clk 0:01:28]}  Re8 {[%clk 0:01:18]} 29. Kd2 {[%clk 0:01:27]}  Rce7 {[%clk 0:01:11]} 30. Rxe7 {[%clk 0:01:24]}  Rxe7 {[%clk 0:01:12]} 31. Re1 {[%clk 0:01:24]}  Rxe1 {[%clk 0:00:59]} 32. Kxe1 {[%clk 0:01:25]}  h6 {[%clk 0:00:54]} 33. Kd2 {[%clk 0:01:24]}  Ke7 {[%clk 0:00:41]} 34. Kd3 {[%clk 0:01:22]}  Kd6 {[%clk 0:00:40]} 35. h4 {[%clk 0:01:22]}  Nd7 {[%clk 0:00:36]} 36. Ke4 {[%clk 0:01:21]}  Nf8 {[%clk 0:00:32]} 37. Bc8 {[%clk 0:01:09]}  b6 {[%clk 0:00:31]} 38. Bf5 {[%clk 0:01:09]}  Ne6 {[%clk 0:00:28]} 39. a3 {[%clk 0:00:59]}  a5 {[%clk 0:00:25]} 40. a4 {[%clk 0:00:57]}  Ng7 {[%clk 0:00:21]} 41. Bg6 {[%clk 0:00:52]}  Ke6 {[%clk 0:00:21]} 42. Kd3 {[%clk 0:00:50]}  f5 {[%clk 0:00:19]} 43. g5 {[%clk 0:00:49]}  hxg5 {[%clk 0:00:17]} 44. hxg5 {[%clk 0:00:45]}  Kd6 {[%clk 0:00:13]} 45. Bf7 {[%clk 0:00:40]}  Ke7 {[%clk 0:00:13]} 46. Bg6 {[%clk 0:00:38]}  Ne6 {[%clk 0:00:13]} 47. Bxf5 {[%clk 0:00:38]}  Nxf4+ {[%clk 0:00:13]} 48. Ke4 {[%clk 0:00:37]}  Nh5 {[%clk 0:00:12]} 49. Kf3 {[%clk 0:00:34]}  Ng7 {[%clk 0:00:12]} 50. Bd3 {[%clk 0:00:33]}  Kf7 {[%clk 0:00:12]} 51. Kg4 {[%clk 0:00:32]}  Ne6 {[%clk 0:00:11]} 52. Kf5 {[%clk 0:00:29]}  Ng7+ {[%clk 0:00:10]} 53. Kg4 {[%clk 0:00:29]}  Ke6 {[%clk 0:00:10]} 54. Kf4 {[%clk 0:00:28]}  Ne8 {[%clk 0:00:09]} 55. Bf5+ {[%clk 0:00:28]}  Ke7 {[%clk 0:00:09]} 56. Ke5 {[%clk 0:00:27]}  Nd6 {[%clk 0:00:09]} 57. Bd3 {[%clk 0:00:27]}  Nf7+ {[%clk 0:00:09]} 58. Kf5 {[%clk 0:00:27]}  Nd6+ {[%clk 0:00:08]} 59. Kg6 {[%clk 0:00:27]}  Nf7 {[%clk 0:00:06]} 60. Kf5 {[%clk 0:00:27]}  Nd8 {[%clk 0:00:03]} 61. Kg6 {[%clk 0:00:25]}  Nc6 {[%clk 0:00:02]} 62. Kf5 {[%clk 0:00:22]}  Nb4 {[%clk 0:00:02]} 63. Be2 {[%clk 0:00:20]}  Kf7 {[%clk 0:00:02]} 64. Bh5+ {[%clk 0:00:19]}  Kg7 {[%clk 0:00:02]} 65. Bd1 {[%clk 0:00:19]}  Nd3 {[%clk 0:00:02]} 66. Bc2 {[%clk 0:00:16]}  Nf2 {[%clk 0:00:01]} 67. Ke6 {[%clk 0:00:16]}  d3 {[%clk 0:00:01]} 68. Bxd3 {[%clk 0:00:16]}  Nxd3 {[%clk 0:00:02]} 69. Kd6 {[%clk 0:00:17]}  Nc1 {[%clk 0:00:02]} 70. Kc6 {[%clk 0:00:17]}  Nxb3 {[%clk 0:00:02]} 71. Kxb6 {[%clk 0:00:17]}  Kg6 {[%clk 0:00:03]} 72. Kc6 {[%clk 0:00:17]}  Kxg5 {[%clk 0:00:04]} 73. Kd5 {[%clk 0:00:18]}  Kf4 {[%clk 0:00:04]} 74. Kc6 {[%clk 0:00:18]}  Ke4 {[%clk 0:00:05]} 75. Kb5 {[%clk 0:00:18]}  Kd4 {[%clk 0:00:06]} 76. Ka6 {[%clk 0:00:17]}  Kxc4 {[%clk 0:00:06]} 0-1

[Event "January 2 Late 2024"]
[Site "https://www.chess.com"]
[Date "2024.01.02"]
[Round "1"]
[White "RaugintaBulba"]
[Black "KSho99"]
[Result "0-1"]
[Board "213"]
[TimeControl "180+1"]
[WhiteElo "2553"]
[BlackElo "2155"]
[WhiteClock "0:00:16"]
[BlackClock "0:00:05"]

1. d4 {[%clk 0:02:30]}  e6 {[%clk 0:02:59]} 2. c4 {[%clk 0:02:31]}  f5 {[%clk 0:02:59]} 3. Nf3 {[%clk 0:02:30]}  Nf6 {[%clk 0:02:59]} 4. g3 {[%clk 0:02:28]}  d5 {[%clk 0:02:59]} 5. Bg2 {[%clk 0:02:29]}  Be7 {[%clk 0:02:58]} 6. O-O {[%clk 0:02:29]}  Ne4 {[%clk 0:02:57]} 7. Nbd2 {[%clk 0:02:29]}  Nc6 {[%clk 0:02:56]} 8. e3 {[%clk 0:02:27]}  h5 {[%clk 0:02:54]} 9. h4 {[%clk 0:02:25]}  g5 {[%clk 0:02:53]} 10. hxg5 {[%clk 0:02:25]}  Bxg5 {[%clk 0:02:53]} 11. Nxg5 {[%clk 0:02:22]}  Qxg5 {[%clk 0:02:52]} 12. Nf3 {[%clk 0:02:21]}  Qg7 {[%clk 0:02:45]} 13. cxd5 {[%clk 0:02:21]}  exd5 {[%clk 0:02:44]} 14. Qb3 {[%clk 0:02:21]}  Ne7 {[%clk 0:02:10]} 15. Nh4 {[%clk 0:02:05]}  c6 {[%clk 0:01:56]} 16. Qd1 {[%clk 0:01:55]}  Ng6 {[%clk 0:01:41]} 17. Qf3 {[%clk 0:01:38]}  Qf6 {[%clk 0:00:58]} 18. Nxg6 {[%clk 0:01:22]}  Qxg6 {[%clk 0:00:58]} 19. Qf4 {[%clk 0:01:17]}  Be6 {[%clk 0:00:46]} 20. Qh4 {[%clk 0:01:12]}  Kd7 {[%clk 0:00:36]} 21. b4 {[%clk 0:01:11]}  Rag8 {[%clk 0:00:22]} 22. b5 {[%clk 0:01:10]}  cxb5 {[%clk 0:00:15]} 23. Ba3 {[%clk 0:01:10]}  Qf7 {[%clk 0:00:14]} 24. Rac1 {[%clk 0:01:10]}  Rg4 {[%clk 0:00:13]} 25. Qh2 {[%clk 0:01:05]}  h4 {[%clk 0:00:13]} 26. gxh4 {[%clk 0:01:05]}  f4 {[%clk 0:00:04]} 27. Qh3 {[%clk 0:00:40]}  Rhxh4 {[%clk 0:00:04]} 28. Qf3 {[%clk 0:00:40]}  Qg6 {[%clk 0:00:04]} 29. Rfd1 {[%clk 0:00:20]}  Rxg2+ {[%clk 0:00:02]} 30. Qxg2 {[%clk 0:00:20]}  Rg4 {[%clk 0:00:03]} 31. Qxg4 {[%clk 0:00:21]}  Qxg4+ {[%clk 0:00:03]} 32. Kf1 {[%clk 0:00:21]}  fxe3 {[%clk 0:00:02]} 33. fxe3 {[%clk 0:00:22]}  Qf3+ {[%clk 0:00:02]} 34. Kg1 {[%clk 0:00:23]}  Bh3 {[%clk 0:00:02]} 35. Rc2 {[%clk 0:00:22]}  Qg3+ {[%clk 0:00:03]} 36. Kh1 {[%clk 0:00:21]}  Nf2+ {[%clk 0:00:03]} 37. Rxf2 {[%clk 0:00:22]}  Qxf2 {[%clk 0:00:04]} 38. Rg1 {[%clk 0:00:20]}  Qxe3 {[%clk 0:00:04]} 39. Rg7+ {[%clk 0:00:19]}  Ke6 {[%clk 0:00:04]} 40. Bc5 {[%clk 0:00:19]}  Qf3+ {[%clk 0:00:04]} 41. Kh2 {[%clk 0:00:19]}  Bf5 {[%clk 0:00:03]} 42. Re7+ {[%clk 0:00:19]}  Kf6 {[%clk 0:00:04]} 43. Re8 {[%clk 0:00:16]}  Qf2+ {[%clk 0:00:04]} 44. Kh1 {[%clk 0:00:15]}  Be4+ {[%clk 0:00:05]} 45. Rxe4 {[%clk 0:00:16]}  dxe4 {[%clk 0:00:05]} 46. d5 {[%clk 0:00:16]}  e3 {[%clk 0:00:04]} 47. d6 {[%clk 0:00:16]}  Ke6 {[%clk 0:00:04]} 48. d7 {[%clk 0:00:16]}  Kxd7 {[%clk 0:00:05]} 49. Bxe3 {[%clk 0:00:16]}  Qxe3 {[%clk 0:00:05]} 0-1

[Event "January 2 Late 2024"]
[Site "https://www.chess.com"]
[Date "2024.01.02"]
[Round "1"]
[White "Mazi, Leon"]
[Black "Montano Vicente, Guadalupe"]
[Result "1-0"]
[Board "215"]
[TimeControl "180+1"]
[WhiteFideId "14600315"]
[BlackFideId "5181399"]
[WhiteElo "2548"]
[BlackElo "2147"]
[WhiteTeam "SLO"]
[BlackTeam "MEX"]
[WhiteClock "0:02:13"]
[BlackClock "0:00:08"]

1. e4 {[%clk 0:02:55]}  c5 {[%clk 0:02:59]} 2. Nf3 {[%clk 0:02:54]}  d6 {[%clk 0:02:58]} 3. d4 {[%clk 0:02:54]}  cxd4 {[%clk 0:02:59]} 4. Qxd4 {[%clk 0:02:54]}  a6 {[%clk 0:02:43]} 5. c4 {[%clk 0:02:50]}  Nc6 {[%clk 0:02:41]} 6. Qe3 {[%clk 0:02:49]}  g6 {[%clk 0:02:36]} 7. Be2 {[%clk 0:02:49]}  Bg7 {[%clk 0:02:28]} 8. O-O {[%clk 0:02:47]}  Nf6 {[%clk 0:02:28]} 9. Rd1 {[%clk 0:02:47]}  Qc7 {[%clk 0:02:24]} 10. Nc3 {[%clk 0:02:45]}  O-O {[%clk 0:02:24]} 11. h3 {[%clk 0:02:43]}  b6 {[%clk 0:01:33]} 12. Rb1 {[%clk 0:02:39]}  Bb7 {[%clk 0:01:31]} 13. b3 {[%clk 0:02:38]}  Rfd8 {[%clk 0:00:47]} 14. Bb2 {[%clk 0:02:38]}  e6 {[%clk 0:00:44]} 15. Rbc1 {[%clk 0:02:36]}  Nd7 {[%clk 0:00:32]} 16. Nd5 {[%clk 0:02:29]}  exd5 {[%clk 0:00:31]} 17. Bxg7 {[%clk 0:02:29]}  dxe4 {[%clk 0:00:27]} 18. Bb2 {[%clk 0:02:24]}  exf3 {[%clk 0:00:26]} 19. Bxf3 {[%clk 0:02:21]}  Nde5 {[%clk 0:00:20]} 20. Bd5 {[%clk 0:02:20]}  Ne7 {[%clk 0:00:17]} 21. f4 {[%clk 0:02:18]}  N5c6 {[%clk 0:00:14]} 22. Qc3 {[%clk 0:02:16]}  Nf5 {[%clk 0:00:08]} 23. Qh8# {[%clk 0:02:13]} 1-0

[Event "January 2 Late 2024"]
[Site "https://www.chess.com"]
[Date "2024.01.02"]
[Round "1"]
[White "hoshiboshi"]
[Black "Mendez Fortes, Eduardo Jesus"]
[Result "0-1"]
[Board "216"]
[TimeControl "180+1"]
[BlackFideId "3502376"]
[WhiteElo "2140"]
[BlackElo "2545"]
[BlackTeam "CUB"]
[WhiteClock "0:00:00"]
[BlackClock "0:01:36"]

1. e4 {[%clk 0:02:57]}  c5 {[%clk 0:02:59]} 2. Nf3 {[%clk 0:02:57]}  d6 {[%clk 0:02:58]} 3. d4 {[%clk 0:02:57]}  cxd4 {[%clk 0:02:59]} 4. Nxd4 {[%clk 0:02:57]}  Nf6 {[%clk 0:03:00]} 5. Nc3 {[%clk 0:02:58]}  a6 {[%clk 0:03:00]} 6. Be2 {[%clk 0:02:58]}  e5 {[%clk 0:03:00]} 7. Nb3 {[%clk 0:02:58]}  Be7 {[%clk 0:03:00]} 8. O-O {[%clk 0:02:58]}  O-O {[%clk 0:03:01]} 9. Re1 {[%clk 0:02:58]}  b5 {[%clk 0:02:59]} 10. Bf3 {[%clk 0:02:50]}  Be6 {[%clk 0:02:58]} 11. Nd5 {[%clk 0:02:49]}  Nbd7 {[%clk 0:02:57]} 12. a4 {[%clk 0:02:48]}  Bxd5 {[%clk 0:02:55]} 13. exd5 {[%clk 0:02:47]}  b4 {[%clk 0:02:56]} 14. a5 {[%clk 0:02:36]}  Qc7 {[%clk 0:02:55]} 15. Bd2 {[%clk 0:02:29]}  Rab8 {[%clk 0:02:55]} 16. h3 {[%clk 0:01:47]}  Nc5 {[%clk 0:02:50]} 17. Nxc5 {[%clk 0:01:39]}  Qxc5 {[%clk 0:02:51]} 18. Be3 {[%clk 0:01:25]}  Qb5 {[%clk 0:02:51]} 19. Bb6 {[%clk 0:01:17]}  Ra8 {[%clk 0:02:42]} 20. Qd2 {[%clk 0:01:04]}  Rfc8 {[%clk 0:02:40]} 21. Be2 {[%clk 0:00:41]}  Qd7 {[%clk 0:02:22]} 22. Red1 {[%clk 0:00:31]}  Qf5 {[%clk 0:02:16]} 23. Rac1 {[%clk 0:00:26]}  h5 {[%clk 0:02:02]} 24. Qxb4 {[%clk 0:00:24]}  Rxc2 {[%clk 0:02:00]} 25. Bf1 {[%clk 0:00:13]}  Nxd5 {[%clk 0:01:57]} 26. Qb3 {[%clk 0:00:07]}  Rxc1 {[%clk 0:01:56]} 27. Rxc1 {[%clk 0:00:08]}  Nf4 {[%clk 0:01:56]} 28. g3 {[%clk 0:00:08]}  Nxh3+ {[%clk 0:01:54]} 29. Bxh3 {[%clk 0:00:09]}  Qxh3 {[%clk 0:01:54]} 30. Qf3 {[%clk 0:00:09]}  Rc8 {[%clk 0:01:46]} 31. Rc7 {[%clk 0:00:06]}  Rxc7 {[%clk 0:01:46]} 32. Bxc7 {[%clk 0:00:06]}  Qg4 {[%clk 0:01:40]} 33. Qxg4 {[%clk 0:00:05]}  hxg4 {[%clk 0:01:40]} 34. b4 {[%clk 0:00:06]}  d5 {[%clk 0:01:40]} 35. b5 {[%clk 0:00:06]}  axb5 {[%clk 0:01:39]} 36. Bb6 {[%clk 0:00:05]}  Bd6 {[%clk 0:01:39]} 37. a6 {[%clk 0:00:05]}  Bb8 {[%clk 0:01:39]} 38. a7 {[%clk 0:00:06]}  Bxa7 {[%clk 0:01:39]} 39. Bxa7 {[%clk 0:00:07]}  f6 {[%clk 0:01:37]} 40. Kf1 {[%clk 0:00:07]}  Kf7 {[%clk 0:01:37]} 41. Ke2 {[%clk 0:00:08]}  Ke6 {[%clk 0:01:37]} 42. Kd3 {[%clk 0:00:08]}  d4 {[%clk 0:01:37]} 43. Bb6 {[%clk 0:00:07]}  Kd5 {[%clk 0:01:38]} 44. Bd8 {[%clk 0:00:06]}  e4+ {[%clk 0:01:37]} 45. Kc2 {[%clk 0:00:06]}  Kc4 {[%clk 0:01:37]} 46. Be7 {[%clk 0:00:06]}  b4 {[%clk 0:01:37]} 47. Bf8 {[%clk 0:00:06]}  g6 {[%clk 0:01:37]} 48. Bg7 {[%clk 0:00:07]}  f5 {[%clk 0:01:37]} 49. Kb2 {[%clk 0:00:06]}  e3 {[%clk 0:01:36]} 50. fxe3 {[%clk 0:00:06]}  dxe3 {[%clk 0:01:37]} 51. Kc2 {[%clk 0:00:06]}  g5 {[%clk 0:01:37]} 52. Kd1 {[%clk 0:00:06]}  Kd3 {[%clk 0:01:37]} 53. Ke1 {[%clk 0:00:05]}  b3 {[%clk 0:01:36]} 54. Be5 {[%clk 0:00:05]}  f4 {[%clk 0:01:36]} 55. gxf4 {[%clk 0:00:00]}  gxf4 {[%clk 0:01:36]} 0-1